[Event "Fagernes Chess GM-Swiss 2025"]
[Site "Fagernes"]
[Date "2025.04.18"]
[Round "7.7"]
[White "Willow, Jonah B"]
[Black "Johansson, Linus"]
[Result "1/2-1/2"]
[Annotator "RC"]
[ECO "C02"]
[WhiteElo "2471"]
[BlackElo "2392"]
[PlyCount "212"]
[EventDate "2025.04.12"]
[EventCountry "NOR"]
[SourceTitle "playchess.com"]
[Source "ChessBase"]
[SourceQuality "1"]
[TimeControl "40/6000+30:2400+30"]

1. e4 {[%emt 0:01:26]} e6 {[%emt 0:00:05]} 2. d4 {[%emt 0:00:05]} d5 {[%emt 0:00:05]} 3. e5 {[%emt 0:00:25]} c5 {[%emt 0:00:05]} 4. c3 {[%emt 0:00:03]} Nc6 {[%emt 0:00:05]} 5. Nf3 {[%emt 0:00:05]} Bd7 {[%emt 0:00:05]} 6. Be2 {[%emt 0:00:28]} Rc8 {[%emt 0:00:05]} 7. O-O {[%emt 0:00:29]} h6 {[%emt 0:00:03]} 8. Nbd2 {[%emt 0:00:06]} cxd4 {[%emt 0:00:22]} 9. cxd4 {[%emt 0:00:07]} Nge7 {[%emt 0:00:04]} 10. Nb3 {[%emt 0:00:40]} Nf5 {[%emt 0:00:14]} 11. Bd2 {[%emt 0:00:47]} a5 {[%emt 0:00:24]} 12. g4 {[%emt 0:25:19]} Nh4 {[%emt 0:00:06]} 13. Nxh4 {[%emt 0:00:19]} Qxh4 {[%emt 0:00:08]} 14. Bxa5 {[%emt 0:01:57]} Nxa5 {[%emt 0:00:10]} 15. Nxa5 {[%emt 0:00:05]} b6 {[%emt 0:00:05]} 16. Nb3 {[%emt 0:05:40]} Be7 {[%emt 0:04:14]} 17. Qd3 {[%emt 0:05:35]} h5 {[%emt 0:07:37]} 18. gxh5 {[%emt 0:17:46]} Bg5 {[%emt 0:01:22]} 19. f4 {[%emt 0:09:53]} Bxf4 {[%emt 0:02:16]} 20. Rf2 {[%emt 0:00:03]} Bh6 {[%emt 0:16:03]} 21. Rg2 {[%emt 0:12:50]} Qe4 {[%emt 0:05:50]} 22. a4 {[%emt 0:04:15]} Rc2 {[%emt 0:22:45]} 23. Qxe4 {[%emt 0:17:38]} dxe4 {[%emt 0:00:02]} 24. Bb5 {[%emt 0:01:01]} Rxg2+ {[%emt 0:15:11]} 25. Kxg2 {[%emt 0:00:04]} Bxb5 {[%emt 0:00:06]} 26. axb5 {[%emt 0:00:02]} O-O {[%emt 0:00:07]} 27. Re1 {[%emt 0:04:50]} Rc8 {[%emt 0:01:44]} 28. Kf2 {[%emt 0:01:36]} Rc4 {[%emt 0:05:47]} 29. Rxe4 {[%emt 0:00:25]} Rb4 {[%emt 0:00:15]} 30. Na1 {[%emt 0:00:02]} Rxb2+ {[%emt 0:00:11]} 31. Re2 {[%emt 0:00:07]} Rxb5 {[%emt 0:00:41]} 32. Rc2 {[%emt 0:00:45]} Rb1 {[%emt 0:03:17]} 33. Rc8+ {[%emt 0:00:09]} Kh7 {[%emt 0:00:02]} 34. Nc2 {[%emt 0:00:07]} b5 {[%emt 0:02:20]} 35. Ke2 {[%emt 0:01:14]} b4 {[%emt 0:06:28]} 36. Rb8 {[%emt 0:00:19]} b3 {[%emt 0:00:30]} 37. Na3 {[%emt 0:00:11]} Rb2+ {[%emt 0:01:42]} 38. Kd3 {[%emt 0:00:22]} Rxh2 {[%emt 0:02:11]} 39. Rxb3 {[%emt 0:00:09]} Rxh5 {[%emt 0:00:20]} 40. Kc4 {[%emt 0:00:58]} Rf5 {[%emt 0:10:13]} 41. Nb5 {[%emt 0:02:51]} g5 {[%emt 0:02:22]} 42. Nd6 {[%emt 0:02:31]} Rf4 {[%emt 0:00:22]} 43. Kc5 {[%emt 0:05:43]} Bg7 {[%emt 0:12:46]} 44. Re3 {[%emt 0:04:05]} Kg6 {[%emt 0:00:51]} 45. d5 {[%emt 0:00:37]} exd5 {[%emt 0:04:52]} 46. Kxd5 {[%emt 0:01:12]} g4 {[%emt 0:00:20]} 47. e6 {[%emt 0:07:20]} fxe6+ {[%emt 0:00:05]} 48. Rxe6+ {[%emt 0:00:58]} Kh5 {[%emt 0:00:08]} 49. Ne4 {[%emt 0:00:24]} Rf5+ {[%emt 0:00:26]} 50. Kc4 {[%emt 0:00:24]} Rf3 {[%emt 0:00:10]} 51. Kd5 {[%emt 0:02:03]} Rd3+ {[%emt 0:00:47]} 52. Kc4 {[%emt 0:01:07]} Rf3 {[%emt 0:02:16]} 53. Kd5 {[%emt 0:00:04]} g3 {[%emt 0:00:39]} 54. Nxg3+ {[%emt 0:00:15]} Rxg3 {[%emt 0:00:02]} 55. Ke4 {[%emt 0:00:55]} Rg1 {[%emt 0:00:12]} 56. Kf3 {[%emt 0:01:40]} Kg5 {[%emt 0:00:28]} 57. Re2 {[%emt 0:00:31]} Ra1 {[%emt 0:00:24]} 58. Rg2+ {[%emt 0:00:07]} Kf6 {[%emt 0:00:05]} 59. Ke4 {[%emt 0:00:05]} Bh6 {[%emt 0:00:30]} 60. Kd5 {[%emt 0:01:09]} Bf4 {[%emt 0:00:25]} 61. Rg8 {[%emt 0:00:34]} Ra5+ {[%emt 0:04:09]} 62. Ke4 {[%emt 0:00:21]} Bd6 {[%emt 0:00:12]} 63. Rh8 {[%emt 0:01:21]} Re5+ {[%emt 0:01:18]} 64. Kd4 {[%emt 0:00:19]} Ke7 {[%emt 0:00:26]} 65. Rh7+ {[%emt 0:00:22]} Ke6 {[%emt 0:00:01]} 66. Rh6+ {[%emt 0:00:08]} Kd7 {[%emt 0:00:05]} 67. Rh1 {[%emt 0:00:22]} Rg5 {[%emt 0:02:49]} 68. Ke4 {[%emt 0:00:26]} Kc6 {[%emt 0:00:12]} 69. Rc1+ {[%emt 0:00:20]} Bc5 {[%emt 0:00:06]} 70. Rf1 {[%emt 0:01:29]} Rg2 {[%emt 0:00:57]} 71. Rf6+ {[%emt 0:02:33]} Bd6 {[%emt 0:00:02]} 72. Rf1 {[%emt 0:00:29]} Rg4+ {[%emt 0:00:06]} 73. Kf5 {[%emt 0:00:44]} Rd4 {[%emt 0:00:02]} 74. Ke6 {[%emt 0:00:24]} Re4+ {[%emt 0:00:20]} 75. Kf5 {[%emt 0:00:02]} Re5+ {[%emt 0:00:15]} 76. Kg4 {[%emt 0:00:13]} Re8 {[%emt 0:01:24]} 77. Rc1+ {[%emt 0:00:19]} Bc5 {[%emt 0:00:32]} 78. Rd1 {[%emt 0:00:09]} Rf8 {[%emt 0:00:17]} 79. Kg5 {[%emt 0:01:14]} Be3+ {[%emt 0:01:10]} 80. Kg4 {[%emt 0:00:50]} Kc5 {[%emt 0:01:48]} 81. Rd7 {[%emt 0:00:28]} Bd4 {[%emt 0:04:12]} 82. Kg5 {[%emt 0:00:48]} Be5 {[%emt 0:00:10]} 83. Ra7 {[%emt 0:00:48]} Kd5 {[%emt 0:00:11]} 84. Ra5+ {[%emt 0:00:25]} Ke4 {[%emt 0:00:17]} 85. Ra4+ {[%emt 0:00:10]} Bd4 {[%emt 0:00:06]} 86. Kg4 {[%emt 0:00:03]} Rg8+ {[%emt 0:00:11]} 87. Kh4 {[%emt 0:00:03]} Ke5 {[%emt 0:01:00]} 88. Kh3 {[%emt 0:00:05]} Be3 {[%emt 0:03:36]} 89. Rg4 {[%emt 0:00:54]} Ra8 {[%emt 0:00:35]} 90. Rb4 {[%emt 0:01:18]} Bd2 {[%emt 0:02:02]} 91. Rb2 {[%emt 0:02:29]} Rd8 {[%emt 0:01:09]} 92. Kg4 {[%emt 0:00:29]} Ke4 {[%emt 0:00:10]} 93. Kh5 {[%emt 0:09:33]} Rd6 {[%emt 0:00:20]} 94. Kg4 {[%emt 0:00:35]} Rg6+ {[%emt 0:04:58]} 95. Kh5 {[%emt 0:00:01]} Rh6+ {[%emt 0:00:07]} 96. Kg4 {[%emt 0:00:01]} Rd6 {[%emt 0:00:08]} 97. Ra2 {[%emt 0:02:06]} Rg6+ {[%emt 0:01:08]} 98. Kh5 {[%emt 0:00:02]} Rg2 {[%emt 0:00:09]} 99. Rb2 {[%emt 0:02:19]} Kf3 {[%emt 0:02:45]} 100. Ra2 {[%emt 0:00:49]} Rg5+ {[%emt 0:00:29]} 101. Kh6 {[%emt 0:00:15]} Be3 {[%emt 0:00:16]} 102. Kh7 {[%emt 0:00:02]} Bd4 {[%emt 0:02:18]} 103. Ra4 {[%emt 0:00:43]} Ke4 {[%emt 0:00:16]} 104. Kh6 {[%emt 0:00:11]} Rg1 {[%emt 0:00:48]} 105. Kh5 {[%emt 0:00:10]} Ke5 {[%emt 0:01:20]} 106. Kh4 {[%emt 0:00:17]} Bf2+ {[%emt 0:01:52]} 1/2-1/2

[Event "Fagernes Chess GM-Swiss 2025"]
[Site "Fagernes"]
[Date "2025.04.18"]
[Round "7.8"]
[White "Csonka, Balazs"]
[Black "Dotzer, Lukas"]
[Result "1-0"]
[Annotator "RC"]
[ECO "D24"]
[WhiteElo "2459"]
[BlackElo "2453"]
[PlyCount "115"]
[EventDate "2025.04.12"]
[EventCountry "NOR"]
[SourceTitle "playchess.com"]
[Source "ChessBase"]
[SourceQuality "1"]
[TimeControl "40/6000+30:2400+30"]

1. d4 {[%emt 0:00:03]} Nf6 {[%emt 0:00:05]} 2. c4 {[%emt 0:00:07]} e6 {[%emt 0:00:06]} 3. Nf3 {[%emt 0:00:06]} d5 {[%emt 0:00:06]} 4. Nc3 {[%emt 0:00:07]} dxc4 {[%emt 0:00:06]} 5. e4 {[%emt 0:05:32]} b5 {[%emt 0:00:05]} 6. e5 {[%emt 0:00:34]} Nd5 {[%emt 0:00:05]} 7. Nxb5 {[%emt 0:00:06]} Nb6 {[%emt 0:00:06]} 8. Be2 {[%emt 0:01:19]} Be7 {[%emt 0:00:07]} 9. Be3 {[%emt 0:01:00]} Bb7 {[%emt 0:06:51]} 10. Qc2 {[%emt 0:03:21]} Na6 {[%emt 0:17:33]} 11. a3 {[%emt 0:03:33]} Qd7 {[%emt 0:06:33]} 12. Nc3 {[%emt 0:03:25]} c5 {[%emt 0:05:17]} 13. O-O {[%emt 0:24:35]} Qc6 {[%emt 0:07:30]} 14. Rad1 {[%emt 0:12:01]} O-O {[%emt 0:05:03]} 15. Rd2 {[%emt 0:07:54]} Rad8 {[%emt 0:07:17]} 16. Rfd1 {[%emt 0:01:57]} Rd7 {[%emt 0:03:12]} 17. Bf1 {[%emt 0:06:45]} h6 {[%emt 0:10:56]} 18. dxc5 {[%emt 0:10:15]} Rxd2 {[%emt 0:09:57]} 19. Qxd2 {[%emt 0:10:48]} Nxc5 {[%emt 0:00:45]} 20. Nd4 {[%emt 0:07:36]} Qc7 {[%emt 0:02:14]} 21. Ncb5 {[%emt 0:02:29]} Qxe5 {[%emt 0:02:12]} 22. Nxa7 {[%emt 0:00:37]} Rd8 {[%emt 0:11:07]} 23. Qa5 {[%emt 0:01:25]} Bd6 {[%emt 0:06:06]} 24. g3 {[%emt 0:01:17]} Qe4 {[%emt 0:08:37]} 25. Ndc6 {[%emt 0:01:41]} Bxc6 {[%emt 0:00:16]} 26. Nxc6 {[%emt 0:00:09]} Qxc6 {[%emt 0:00:08]} 27. Bxc5 {[%emt 0:00:08]} Bc7 {[%emt 0:01:01]} 28. Rxd8+ {[%emt 0:01:19]} Bxd8 {[%emt 0:00:05]} 29. Bg2 {[%emt 0:02:42]} Qa4 {[%emt 0:00:56]} 30. Qd2 {[%emt 0:00:20]} Qd7 {[%emt 0:00:34]} 31. Qxd7 {[%emt 0:01:30]} Nxd7 {[%emt 0:00:04]} 32. Bd4 {[%emt 0:01:09]} Bb6 {[%emt 0:00:32]} 33. Bxb6 {[%emt 0:00:37]} Nxb6 {[%emt 0:00:04]} 34. Bc6 {[%emt 0:00:08]} Kf8 {[%emt 0:00:40]} 35. a4 {[%emt 0:00:29]} Ke7 {[%emt 0:00:13]} 36. Bb5 {[%emt 0:00:26]} Kd6 {[%emt 0:01:05]} 37. a5 {[%emt 0:00:08]} c3 {[%emt 0:00:39]} 38. bxc3 {[%emt 0:00:08]} Nd5 {[%emt 0:00:39]} 39. a6 {[%emt 0:00:56]} Nc7 {[%emt 0:00:30]} 40. c4 {[%emt 0:01:16]} Kc5 {[%emt 0:00:19]} 41. Kg2 {[%emt 0:07:46]} Kb6 {[%emt 0:21:16]} 42. Kf3 {[%emt 0:04:20]} Nxa6 {[%emt 0:00:52]} 43. Be8 {[%emt 0:00:44]} f6 {[%emt 0:16:58]} 44. Kg4 {[%emt 0:05:17]} Nc5 {[%emt 0:00:43]} 45. Bf7 {[%emt 0:15:35]} Nd3 {[%emt 0:02:51]} 46. Bxe6 {[%emt 0:01:09]} Nxf2+ {[%emt 0:00:33]} 47. Kf5 {[%emt 0:00:38]} Kc5 {[%emt 0:00:33]} 48. Kg6 {[%emt 0:00:52]} Kd6 {[%emt 0:00:26]} 49. Bf5 {[%emt 0:02:41]} Nd1 {[%emt 0:00:31]} 50. Kxg7 {[%emt 0:01:17]} Ne3 {[%emt 0:00:18]} 51. Bd3 {[%emt 0:01:08]} Ng4 {[%emt 0:00:45]} 52. Be2 {[%emt 0:00:21]} Nxh2 {[%emt 0:00:28]} 53. Kxh6 {[%emt 0:01:27]} Ke5 {[%emt 0:00:16]} 54. Kh5 {[%emt 0:00:07]} f5 {[%emt 0:00:28]} 55. Kh4 {[%emt 0:00:29]} f4 {[%emt 0:00:43]} 56. gxf4+ {[%emt 0:00:06]} Kxf4 {[%emt 0:00:30]} 57. Kh3 {[%emt 0:00:08]} Ke3 {[%emt 0:00:15]} 58. Kxh2 {[%emt 0:00:05]} 1-0

[Event "Fagernes Chess GM-Swiss 2025"]
[Site "Fagernes"]
[Date "2025.04.18"]
[Round "7.9"]
[White "Aradhya, Garg"]
[Black "Kaasen, Tor Fredrik"]
[Result "0-1"]
[Annotator "ChessBase"]
[ECO "D37"]
[WhiteElo "2387"]
[BlackElo "2472"]
[PlyCount "76"]
[EventDate "2025.04.12"]
[EventCountry "NOR"]
[SourceTitle "playchess.com"]
[Source "ChessBase"]
[SourceQuality "1"]
[TimeControl "40/6000+30:2400+30"]

1. d4 {[%emt 0:00:02]} Nf6 {[%emt 0:01:26]} 2. c4 {[%emt 0:00:03]} e6 {[%emt 0:00:15]} 3. Nf3 {[%emt 0:00:03]} d5 {[%emt 0:00:20]} 4. Nc3 {[%emt 0:00:02]} Nbd7 {[%emt 0:00:11]} 5. e3 {[%emt 0:02:50]} b6 {[%emt 0:04:33]} 6. cxd5 {[%emt 0:00:37]} exd5 {[%emt 0:00:35]} 7. Qb3 {[%emt 0:19:00]} Bb7 {[%emt 0:02:16]} 8. e4 {[%emt 0:00:04]} Nxe4 {[%emt 0:14:12]} 9. Nxe4 {[%emt 0:00:08]} Qe7 {[%emt 0:01:03]} 10. Nfg5 {[%emt 0:31:54]} h6 {[%emt 0:12:07]} 11. Qh3 {[%emt 0:03:04]} dxe4 {[%emt 0:06:49]} 12. a3 {[%emt 0:00:17]} Bd5 {[%emt 0:11:34]} 13. Ba6 {[%emt 0:00:19]} g6 {[%emt 0:01:19]} 14. Kd1 {[%emt 0:09:30]} Rd8 {[%emt 0:16:56]} 15. Re1 {[%emt 0:02:59]} Nc5 {[%emt 0:10:27]} 16. Bb5+ {[%emt 0:04:52]} c6 {[%emt 0:00:14]} 17. dxc5 {[%emt 0:00:06]} cxb5 {[%emt 0:01:46]} 18. Bd2 {[%emt 0:00:46]} Bg7 {[%emt 0:03:49]} 19. Nxe4 {[%emt 0:00:34]} Bxe4 {[%emt 0:00:07]} 20. f3 {[%emt 0:00:03]} Rxd2+ {[%emt 0:05:58]} 21. Kxd2 {[%emt 0:00:02]} Qd8+ {[%emt 0:00:07]} 22. Ke2 {[%emt 0:03:51]} Qd3+ {[%emt 0:00:24]} 23. Kf2 {[%emt 0:00:02]} Bd4+ {[%emt 0:00:33]} 24. Kg3 {[%emt 0:00:02]} Be5+ {[%emt 0:00:09]} 25. Kf2 {[%emt 0:00:09]} Qd4+ {[%emt 0:01:00]} 26. Re3 {[%emt 0:00:33]} Qxb2+ {[%emt 0:00:42]} 27. Re2 {[%emt 0:00:15]} Qd4+ {[%emt 0:00:11]} 28. Re3 {[%emt 0:00:08]} Bf5 {[%emt 0:01:22]} 29. g4 {[%emt 0:00:12]} Qxa1 {[%emt 0:01:28]} 30. gxf5 {[%emt 0:00:07]} O-O {[%emt 0:01:06]} 31. Re1 {[%emt 0:02:12]} Bd4+ {[%emt 0:00:21]} 32. Kf1 {[%emt 0:00:02]} Qa2 {[%emt 0:01:33]} 33. Qg3 {[%emt 0:00:39]} Qc4+ {[%emt 0:00:17]} 34. Kg2 {[%emt 0:00:00]} Qc2+ {[%emt 0:00:07]} 35. Kf1 {[%emt 0:00:00]} Qxf5 {[%emt 0:00:21]} 36. c6 {[%emt 0:00:00]} Qd3+ {[%emt 0:00:09]} 37. Kg2 {[%emt 0:00:08]} Qc2+ {[%emt 0:00:07]} 38. Kf1 {[%emt 0:00:07]} Qxc6 {[%emt 0:00:08]} 0-1

[Event "Fagernes Chess GM-Swiss 2025"]
[Site "Fagernes"]
[Date "2025.04.18"]
[Round "7.10"]
[White "Adharsh K"]
[Black "Kulaots, Kaido"]
[Result "0-1"]
[Annotator "RC"]
[ECO "B12"]
[WhiteElo "2317"]
[BlackElo "2510"]
[PlyCount "82"]
[EventDate "2025.04.12"]
[EventCountry "NOR"]
[SourceTitle "playchess.com"]
[Source "ChessBase"]
[SourceQuality "1"]
[TimeControl "40/6000+30:2400+30"]

1. e4 {[%emt 0:01:51]} c6 {[%emt 0:00:09]} 2. d4 {[%emt 0:01:06]} d5 {[%emt 0:00:05]} 3. e5 {[%emt 0:00:10]} Bf5 {[%emt 0:00:25]} 4. h4 {[%emt 0:00:07]} h5 {[%emt 0:00:20]} 5. Bd3 {[%emt 0:00:09]} Bxd3 {[%emt 0:00:07]} 6. Qxd3 {[%emt 0:00:06]} Qa5+ {[%emt 0:00:26]} 7. Nd2 {[%emt 0:00:05]} e6 {[%emt 0:00:18]} 8. Ngf3 {[%emt 0:00:07]} Nh6 {[%emt 0:02:18]} 9. O-O {[%emt 0:05:55]} Nf5 {[%emt 0:00:49]} 10. b3 {[%emt 0:13:10]} Be7 {[%emt 0:06:11]} 11. g3 {[%emt 0:00:08]} c5 {[%emt 0:01:40]} 12. dxc5 {[%emt 0:10:06]} Qxc5 {[%emt 0:10:19]} 13. Kg2 {[%emt 0:10:48]} Nc6 {[%emt 0:05:47]} 14. c3 {[%emt 0:17:59]} a6 {[%emt 0:19:06]} 15. Bb2 {[%emt 0:03:27]} O-O {[%emt 0:13:11]} 16. b4 {[%emt 0:00:57]} Qb5 {[%emt 0:01:37]} 17. Qxb5 {[%emt 0:00:36]} axb5 {[%emt 0:00:05]} 18. a3 {[%emt 0:00:06]} f6 {[%emt 0:01:09]} 19. Rae1 {[%emt 0:03:09]} Kf7 {[%emt 0:16:56]} 20. Nb3 {[%emt 0:06:59]} Rac8 {[%emt 0:03:22]} 21. exf6 {[%emt 0:01:23]} gxf6 {[%emt 0:00:24]} 22. Re2 {[%emt 0:07:59]} e5 {[%emt 0:04:41]} 23. Rd1 {[%emt 0:00:49]} Rfd8 {[%emt 0:02:48]} 24. Ne1 {[%emt 0:03:00]} Bf8 {[%emt 0:05:22]} 25. Red2 {[%emt 0:04:02]} Nce7 {[%emt 0:00:44]} 26. Ra1 {[%emt 0:01:54]} Ra8 {[%emt 0:02:38]} 27. Re2 {[%emt 0:01:32]} Rdc8 {[%emt 0:00:40]} 28. f3 {[%emt 0:00:37]} Bh6 {[%emt 0:01:22]} 29. Kh3 {[%emt 0:01:23]} Nd6 {[%emt 0:04:41]} 30. Nc2 {[%emt 0:00:50]} b6 {[%emt 0:02:07]} 31. Kh2 {[%emt 0:03:45]} Rc7 {[%emt 0:00:22]} 32. Kh3 {[%emt 0:00:21]} Rac8 {[%emt 0:00:54]} 33. Rf1 {[%emt 0:04:41]} d4 {[%emt 0:02:15]} 34. f4 {[%emt 0:01:39]} d3 {[%emt 0:01:03]} 35. fxe5 {[%emt 0:00:03]} Nc4 {[%emt 0:03:01]} 36. Ref2 {[%emt 0:01:17]} dxc2 {[%emt 0:00:19]} 37. Rxf6+ {[%emt 0:00:03]} Kg7 {[%emt 0:00:34]} 38. Nd4 {[%emt 0:00:18]} Nxb2 {[%emt 0:00:32]} 39. Ne6+ {[%emt 0:00:04]} Kh7 {[%emt 0:00:30]} 40. Nxc7 Rxc7 {[%emt 0:00:24]} 41. Rf7+ {[%emt 0:40:36]} Kg8 {[%emt 0:40:21]} 0-1

[Event "Fagernes Chess GM-Swiss 2025"]
[Site "Fagernes"]
[Date "2025.04.18"]
[Round "7.11"]
[White "Kvaloy, Aksel Bu"]
[Black "Myagmarsuren, Evsuld"]
[Result "1-0"]
[Annotator "RC"]
[ECO "D30"]
[WhiteElo "2481"]
[BlackElo "2305"]
[PlyCount "61"]
[EventDate "2025.04.12"]
[EventCountry "NOR"]
[SourceTitle "playchess.com"]
[Source "ChessBase"]
[SourceQuality "1"]
[TimeControl "40/6000+30:2400+30"]

1. d4 {[%emt 0:00:06]} d5 {[%emt 0:00:05]} 2. Nf3 {[%emt 0:00:38]} Nf6 {[%emt 0:00:04]} 3. c4 {[%emt 0:00:04]} c6 {[%emt 0:00:03]} 4. e3 {[%emt 0:00:13]} e6 {[%emt 0:01:14]} 5. b3 {[%emt 0:00:32]} Ne4 {[%emt 0:00:08]} 6. Nbd2 {[%emt 0:08:05]} Bb4 {[%emt 0:04:06]} 7. Bd3 {[%emt 0:05:54]} c5 {[%emt 0:09:13]} 8. O-O {[%emt 0:02:18]} Nxd2 {[%emt 0:03:27]} 9. Bxd2 {[%emt 0:00:34]} Bxd2 {[%emt 0:00:46]} 10. Qxd2 {[%emt 0:00:48]} cxd4 {[%emt 0:01:35]} 11. exd4 {[%emt 0:00:56]} dxc4 {[%emt 0:09:26]} 12. bxc4 {[%emt 0:01:37]} O-O {[%emt 0:00:24]} 13. Rab1 {[%emt 0:11:25]} a6 {[%emt 0:04:22]} 14. Qf4 {[%emt 0:09:15]} Nc6 {[%emt 0:13:17]} 15. Rfe1 {[%emt 0:02:57]} g6 {[%emt 0:07:40]} 16. Rbd1 {[%emt 0:06:46]} Nb4 {[%emt 0:16:39]} 17. Bb1 {[%emt 0:01:44]} Qa5 {[%emt 0:02:55]} 18. d5 {[%emt 0:11:13]} exd5 {[%emt 0:01:48]} 19. Qh6 {[%emt 0:01:09]} Qc7 {[%emt 0:03:06]} 20. cxd5 {[%emt 0:01:19]} Bg4 {[%emt 0:04:04]} 21. Rc1 {[%emt 0:01:45]} Qd7 {[%emt 0:03:39]} 22. Ne5 {[%emt 0:00:29]} Qa4 {[%emt 0:00:25]} 23. Nxg4 {[%emt 0:05:57]} Nxd5 {[%emt 0:00:06]} 24. Be4 {[%emt 0:01:06]} Rfe8 {[%emt 0:00:23]} 25. Bxd5 {[%emt 0:01:23]} Qxg4 {[%emt 0:00:13]} 26. Bxf7+ {[%emt 0:01:45]} Kxf7 {[%emt 0:00:10]} 27. Rc7+ {[%emt 0:00:15]} Kf6 {[%emt 0:00:10]} 28. Qg7+ {[%emt 0:00:14]} Kg5 {[%emt 0:00:28]} 29. Rc5+ {[%emt 0:00:11]} Kf4 {[%emt 0:00:16]} 30. Qd4+ {[%emt 0:00:28]} Re4 {[%emt 0:00:09]} 31. Qxe4# {[%emt 0:00:05]} 1-0

[Event "Fagernes Chess GM-Swiss 2025"]
[Site "Fagernes"]
[Date "2025.04.18"]
[Round "7.12"]
[White "Hillarp Persson, Tiger"]
[Black "Fiskaaen, Martin Holten"]
[Result "1/2-1/2"]
[Annotator "RC"]
[ECO "A11"]
[WhiteElo "2462"]
[BlackElo "2283"]
[PlyCount "117"]
[EventDate "2025.04.12"]
[EventCountry "NOR"]
[SourceTitle "playchess.com"]
[Source "ChessBase"]
[SourceQuality "1"]
[TimeControl "40/6000+30:2400+30"]

1. Nf3 {[%emt 0:00:03]} d5 {[%emt 0:00:32]} 2. g3 {[%emt 0:00:25]} Bg4 {[%emt 0:00:40]} 3. Bg2 {[%emt 0:00:23]} c6 {[%emt 0:00:18]} 4. c4 {[%emt 0:09:14]} e6 {[%emt 0:03:47]} 5. Qb3 {[%emt 0:18:50]} Qb6 {[%emt 0:01:51]} 6. h3 {[%emt 0:08:08]} Bh5 {[%emt 0:02:39]} 7. d4 {[%emt 0:02:57]} Nf6 {[%emt 0:07:26]} 8. Nc3 {[%emt 0:09:12]} Nbd7 {[%emt 0:01:33]} 9. cxd5 {[%emt 0:07:23]} exd5 {[%emt 0:04:24]} 10. Nh4 {[%emt 0:00:55]} Bg6 {[%emt 0:04:09]} 11. Nxg6 {[%emt 0:01:02]} hxg6 {[%emt 0:00:47]} 12. Bf4 {[%emt 0:10:13]} Be7 {[%emt 0:05:58]} 13. g4 {[%emt 0:03:48]} O-O {[%emt 0:05:39]} 14. Rd1 {[%emt 0:02:11]} Rfe8 {[%emt 0:03:25]} 15. O-O {[%emt 0:05:59]} Bb4 {[%emt 0:06:06]} 16. Qc2 {[%emt 0:02:09]} Re6 {[%emt 0:08:30]} 17. g5 {[%emt 0:04:11]} Nh5 {[%emt 0:10:39]} 18. Bh2 {[%emt 0:01:18]} Bxc3 {[%emt 0:06:30]} 19. bxc3 {[%emt 0:00:34]} Qd8 {[%emt 0:00:37]} 20. h4 {[%emt 0:00:16]} Nb6 {[%emt 0:00:16]} 21. Rfe1 {[%emt 0:13:18]} Nc4 {[%emt 0:02:34]} 22. e4 {[%emt 0:00:52]} Qe7 {[%emt 0:00:44]} 23. Bf1 {[%emt 0:03:46]} b5 {[%emt 0:00:30]} 24. e5 {[%emt 0:00:30]} Qe8 {[%emt 0:04:53]} 25. Bh3 {[%emt 0:00:38]} a5 {[%emt 0:06:36]} 26. f4 {[%emt 0:00:12]} Re7 {[%emt 0:01:37]} 27. Qe2 {[%emt 0:03:29]} b4 {[%emt 0:06:44]} 28. Rc1 {[%emt 0:01:33]} bxc3 {[%emt 0:05:50]} 29. Rxc3 {[%emt 0:00:08]} Rb8 {[%emt 0:01:33]} 30. Rc2 {[%emt 0:00:26]} Na3 {[%emt 0:01:50]} 31. Rc3 {[%emt 0:00:08]} Nc4 {[%emt 0:00:08]} 32. f5 {[%emt 0:01:11]} Rb2 {[%emt 0:00:50]} 33. Qg4 {[%emt 0:00:10]} Nd6 {[%emt 0:00:58]} 34. Qf3 {[%emt 0:01:14]} Ne4 {[%emt 0:01:59]} 35. Rce3 {[%emt 0:00:30]} Qb8 {[%emt 0:01:02]} 36. Rb3 {[%emt 0:00:29]} Rxb3 {[%emt 0:00:19]} 37. axb3 {[%emt 0:00:14]} Qb4 {[%emt 0:01:16]} 38. Rd1 {[%emt 0:02:57]} gxf5 {[%emt 0:03:44]} 39. Qxh5 {[%emt 0:00:00]} Qxb3 {[%emt 0:00:01]} 40. Bxf5 {[%emt 0:00:00]} Qe3+ {[%emt 0:01:03]} 41. Kh1 {[%emt 0:39:07]} g6 {[%emt 0:28:15]} 42. Bxg6 {[%emt 0:00:00]} fxg6 {[%emt 0:06:30]} 43. Qxg6+ {[%emt 0:00:00]} Kf8 {[%emt 0:01:57]} 44. Qh6+ {[%emt 0:00:00]} Kg8 {[%emt 0:00:36]} 45. Qg6+ {[%emt 0:00:00]} Kf8 {[%emt 0:00:30]} 46. Rf1+ {[%emt 0:00:00]} Nf2+ {[%emt 0:00:00]} 47. Kg2 {[%emt 0:00:03]} Qh3+ {[%emt 0:02:03]} 48. Kxf2 {[%emt 0:01:10]} Rf7+ {[%emt 0:00:23]} 49. Qxf7+ {[%emt 0:00:10]} Kxf7 {[%emt 0:00:30]} 50. Bg3 {[%emt 0:00:30]} Kg6 {[%emt 0:00:30]} 51. Rc1 {[%emt 0:00:30]} Qf5+ {[%emt 0:00:30]} 52. Kg2 {[%emt 0:00:30]} Qe4+ {[%emt 0:03:18]} 53. Kh3 {[%emt 0:00:29]} Kh5 {[%emt 0:01:11]} 54. Rf1 {[%emt 0:00:51]} a4 {[%emt 0:00:45]} 55. Rf6 {[%emt 0:01:01]} Qg4+ {[%emt 0:00:14]} 56. Kh2 {[%emt 0:00:17]} Qe2+ {[%emt 0:00:07]} 57. Kh3 {[%emt 0:02:14]} Qg4+ {[%emt 0:00:04]} 58. Kh2 {[%emt 0:00:08]} Qe2+ {[%emt 0:00:27]} 59. Kh3 {[%emt 0:01:17]} 1/2-1/2

[Event "Fagernes Chess GM-Swiss 2025"]
[Site "Fagernes"]
[Date "2025.04.18"]
[Round "7.13"]
[White "Zhou, Yang-Fan"]
[Black "Vijayakumar, Rishi"]
[Result "1-0"]
[Annotator "RC"]
[ECO "C54"]
[WhiteElo "2418"]
[BlackElo "2317"]
[PlyCount "95"]
[EventDate "2025.04.12"]
[EventCountry "NOR"]
[SourceTitle "playchess.com"]
[Source "ChessBase"]
[SourceQuality "1"]
[TimeControl "40/6000+30:2400+30"]

1. e4 e5 2. Nf3 Nc6 3. Bc4 Nf6 4. d3 Bc5 5. Bg5 h6 6. Bh4 d6 7. c3 a5 8. Nbd2 Ba7 9. a4 g5 10. Bg3 O-O 11. O-O Bg4 12. Re1 Qd7 13. Nf1 Nh5 14. h3 Nxg3 15. Nxg3 Be6 16. Qb3 Bb6 17. Rad1 Bxc4 18. Qxc4 Qe6 19. Nf5 Kh7 20. Nd2 Rad8 21. Qd5 Ne7 22. Nxe7 Qxe7 23. Qxb7 g4 24. hxg4 Qh4 25. d4 Qxg4 26. Qd5 Kh8 27. g3 f5 28. Qe6 Qg7 29. exf5 Rf6 30. Qc4 Rxf5 31. Nf1 Rdf8 32. Re2 Rf4 33. Red2 h5 34. Qd5 R4f5 35. Qg2 Rg5 36. Ne3 Rf4 37. Rd3 e4 38. R3d2 h4 39. Nf1 hxg3 40. fxg3 e3 41. gxf4 Rxg2+ 42. Rxg2 e2 43. Re1 Bxd4+ 44. Kh1 Bf2 45. Rxe2 Qh6+ 46. Rh2 Bh4 47. Rxh4 Qxh4+ 48. Rh2 1-0